bitfinex/quotes_BTCUSD_20250618
["timestamp","ask_amount","ask_price","bid_price","bid_amount"]
[1750254500360,5.3169149,104210.0,104200.0,0.0011422]
[1750254500585,5.4828349,104210.0,104200.0,0.0011422]
[1750254500804,5.4908349,104210.0,104200.0,0.0021422]
[1750254501030,0.58503161,104210.0,104200.0,0.0011422]
[1750254501233,0.22011161,104210.0,104200.0,0.0011422]
[1750254501434,0.38603161,104210.0,104200.0,0.0011422]
[1750254501859,0.44853161,104210.0,104200.0,0.0011422]
[1750254505687,5.49731368,104210.0,104200.0,0.0011422]
[1750254505900,5.49382836,104210.0,104200.0,0.0011422]
[1750254509299,5.49374836,104210.0,104200.0,0.0011422]
[1750254511436,5.52228716,104210.0,104200.0,0.0011422]
[1750254512535,5.78306977,104210.0,104200.0,0.0011422]
[1750254512742,5.91063679,104210.0,104200.0,0.0011422]
[1750254513165,5.87921899,104210.0,104200.0,0.0011422]
[1750254513592,5.87921745,104210.0,104200.0,0.0011422]
[1750254514942,5.5346035,104210.0,104200.0,0.0011422]
[1750254515166,5.73611758,104210.0,104200.0,0.0011422]
[1750254516296,5.62525497,104210.0,104200.0,0.0011422]
[1750254516536,5.62525653,104210.0,104200.0,0.0011422]
[1750254516755,0.201574,104180.0,104170.0,4e-05]
[1750254516978,0.367334,104180.0,104170.0,4e-05]
[1750254517896,0.367334,104180.0,104170.0,0.03094]
[1750254519501,0.369334,104180.0,104170.0,0.07304]
[1750254520058,0.403574,104180.0,104170.0,0.16928176]
[1750254520185,0.369294,104180.0,104170.0,0.16928176]
[1750254521321,0.203574,104180.0,104170.0,0.16928176]
[1750254521547,0.369294,104180.0,104170.0,0.16928176]
[1750254525253,0.369294,104180.0,104170.0,0.21194114]
[1750254525970,0.369294,104180.0,104170.0,0.16928176]
[1750254526205,0.369294,104180.0,104170.0,0.04194]
[1750254526456,0.369294,104180.0,104170.0,0.01104]
[1750254527130,0.369294,104180.0,104170.0,0.07224]
[1750254527991,0.369214,104180.0,104170.0,0.07224]
[1750254530698,0.203574,104180.0,104170.0,0.09963924]
[1750254530945,0.369174,104180.0,104170.0,0.09963924]
[1750254531159,0.369174,104180.0,104170.0,0.07224]
[1750254531403,0.203574,104180.0,104170.0,0.07224]
[1750254531647,0.369174,104180.0,104170.0,0.07224]
[1750254532307,0.203574,104180.0,104170.0,0.07224]
[1750254532532,0.369134,104180.0,104170.0,0.07224]
[1750254532764,0.203574,104180.0,104170.0,0.07224]
[1750254532983,0.369134,104180.0,104170.0,0.07224]
[1750254534763,0.369134,104180.0,104170.0,0.04174]
[1750254535933,0.369134,104180.0,104170.0,0.07354]
[1750254538999,0.369134,104180.0,104170.0,0.04174]
[1750254540636,0.37583442,104180.0,104170.0,0.04174]
[1750254540842,0.37583442,104180.0,104170.0,0.07304]
[1750254541467,0.37583437,104180.0,104170.0,0.07304]
[1750254542236,0.37583437,104180.0,104170.0,0.04174]
[1750254543219,0.37583437,104180.0,104170.0,0.01104]
[1750254544436,0.37583956,104180.0,104170.0,0.01104]
[1750254546707,0.20159335,104170.0,104160.0,0.07696]
[1750254547079,0.20159335,104170.0,104160.0,0.15767901]
[1750254547511,0.02119615,104180.0,104170.0,0.23399345]
[1750254547721,0.39772883,104180.0,104170.0,0.12864176]
[1750254547927,0.37853268,104180.0,104170.0,0.08057657]
[1750254548166,0.21119258,104170.0,104160.0,0.02879454]
[1750254548370,0.21119258,104170.0,104160.0,0.1250363]
[1750254548595,0.20159335,104170.0,104160.0,0.09624176]
[1750254548803,0.22083347,104150.0,104140.0,0.04953862]
[1750254548984,0.38615412,104150.0,104140.0,0.10906966]
[1750254549430,0.37655323,104150.0,104140.0,0.0929987]
[1750254549645,0.37655323,104150.0,104140.0,0.0640987]
[1750254549863,0.37655323,104150.0,104140.0,0.05508942]
[1750254550071,0.36695207,104150.0,104140.0,0.05508942]
[1750254550287,0.42284851,104150.0,104140.0,0.0324]
[1750254550550,0.20165152,104140.0,104130.0,0.07826]
[1750254550757,0.20165152,104140.0,104130.0,0.11032086]
[1750254550961,0.20165152,104140.0,104130.0,0.14272086]
[1750254551162,0.2112537,104140.0,104130.0,0.14272086]
[1750254551732,0.02880662,104140.0,104130.0,0.33478846]
[1750254552065,0.22325545,104140.0,104130.0,0.34439184]
[1750254552269,0.25914165,104140.0,104130.0,0.14272086]
[1750254552894,0.26114165,104140.0,104130.0,0.15232424]
[1750254553068,0.26114165,104140.0,104130.0,0.14272086]
[1750254553285,0.25153957,104140.0,104130.0,0.14272086]
[1750254553902,0.30282642,104140.0,104130.0,0.14272086]
[1750254554063,0.30282642,104140.0,104130.0,0.16069827]
[1750254554641,0.24193739,104140.0,104130.0,0.16069827]
[1750254554866,0.04988795,104140.0,104130.0,0.37197253]
[1750254555068,0.22476976,104140.0,104130.0,0.39117873]
[1750254555276,0.04028587,104140.0,104130.0,0.40078146]
[1750254555483,0.21512768,104140.0,104130.0,0.40078146]
[1750254555680,0.20552587,104140.0,104130.0,0.40078146]
[1750254555854,0.04028587,104140.0,104130.0,0.40078146]
[1750254556295,0.04028587,104140.0,104130.0,0.4877219]
[1750254557187,0.04028587,104140.0,104130.0,0.40078146]
[1750254561201,0.04028587,104140.0,104130.0,0.38280405]
[1750254562361,0.04988749,104140.0,104130.0,0.38280405]
[1750254562586,0.04028587,104140.0,104130.0,0.38280405]
[1750254563683,0.04028587,104140.0,104130.0,0.36359831]
[1750254563684,0.04988759,104140.0,104130.0,0.36359831]
[1750254563865,0.27869338,104140.0,104130.0,0.15232424]
[1750254564117,0.27869338,104140.0,104130.0,0.18844086]
[1750254564317,5.17494586,104140.0,104130.0,0.09464902]
[1750254564491,5.10770866,104140.0,104130.0,0.1042524]
[1750254564734,5.25366468,104140.0,104130.0,0.3059231]
[1750254564912,5.46491828,104140.0,104130.0,0.30592328]
[1750254565065,5.26326676,104140.0,104130.0,0.32512938]
[1750254565272,5.27286903,104140.0,104130.0,0.40546506]
[1750254565469,0.04028587,104140.0,104130.0,0.33473221]
[1750254565916,0.24028587,104140.0,104130.0,0.33473221]
[1750254566340,0.04028587,104140.0,104130.0,0.33473221]
[1750254567399,0.04028587,104140.0,104130.0,0.36513221]
[1750254567571,0.04028587,104140.0,104130.0,0.53025221]
[1750254567778,0.04028587,104140.0,104130.0,0.62640143]
[1750254569478,0.03728067,104140.0,104130.0,0.62640143]
[1750254570358,0.03728067,104140.0,104130.0,0.64094228]
[1750254572004,0.03728067,104140.0,104130.0,0.67925277]
[1750254572239,0.03728067,104140.0,104130.0,0.72925277]
[1750254573133,0.03528067,104140.0,104130.0,0.72925277]
[1750254573430,0.03728067,104140.0,104130.0,0.72925277]
[1750254573654,0.002,104140.0,104130.0,0.72925277]
[1750254573871,0.002,104140.0,104130.0,0.73225277]
[1750254574315,0.04076616,104140.0,104130.0,0.7897185]
[1750254574534,0.002,104140.0,104130.0,0.7897185]
[1750254578430,0.04056377,104140.0,104130.0,0.7897185]
[1750254578877,0.002,104140.0,104130.0,0.7897185]
[1750254579303,0.002,104140.0,104130.0,0.78973947]
[1750254579516,0.002,104140.0,104130.0,0.75140801]
[1750254581749,0.04034903,104140.0,104130.0,0.75140801]
[1750254581959,0.002,104140.0,104130.0,0.75140801]
[1750254583909,0.002,104140.0,104130.0,0.77056326]
[1750254586140,0.002,104140.0,104130.0,0.71961404]
[1750254586359,0.002,104140.0,104130.0,0.43267306]
[1750254586563,0.002,104140.0,104130.0,0.64299306]
[1750254587699,0.002,104140.0,104130.0,0.71961404]
[1750254589114,0.28003694,104180.0,104170.0,0.22079181]
[1750254589342,0.27057556,104180.0,104170.0,0.36251357]
[1750254589767,0.07057556,104180.0,104170.0,0.36251357]
[1750254590012,0.07153459,104180.0,104170.0,0.36251357]
[1750254590433,0.07253459,104180.0,104170.0,0.36251357]
[1750254590884,0.31225828,104180.0,104170.0,0.36251357]
[1750254591110,0.04986025,104180.0,104170.0,0.48755942]
[1750254591368,0.04986025,104180.0,104170.0,0.51755942]
[1750254592244,0.04986025,104180.0,104170.0,0.51555942]
[1750254592460,0.03986025,104180.0,104170.0,0.51555942]
[1750254592699,0.03986025,104180.0,104170.0,0.51655942]
[1750254592700,0.04286025,104180.0,104170.0,0.51655942]
[1750254592910,0.04286025,104180.0,104170.0,0.51755942]
[1750254593993,5.122346,104190.0,104180.0,0.20157354]
[1750254594209,5.19571831,104180.0,104170.0,0.002]
[1750254594435,5.022943,104170.0,104160.0,0.05508061]
[1750254594646,5.20533799,104170.0,104160.0,0.12732438]
[1750254594864,5.23360721,104170.0,104160.0,0.11925771]
[1750254595046,5.22400808,104170.0,104160.0,0.11925771]
[1750254595318,5.22400808,104170.0,104160.0,0.09535771]
[1750254595531,5.21440867,104170.0,104160.0,0.09535771]
[1750254595736,5.24601199,104170.0,104160.0,0.14083771]
[1750254595952,5.24601199,104170.0,104160.0,0.33284999]
[1750254596187,5.21440867,104170.0,104160.0,0.35205084]
[1750254596411,5.21440867,104170.0,104160.0,0.34245051]
[1750254596645,5.21440867,104170.0,104160.0,0.35205094]
[1750254596871,5.21540867,104170.0,104160.0,0.35305094]
[1750254597082,5.21540867,104170.0,104160.0,0.15143832]
[1750254597302,5.20580907,104170.0,104160.0,0.13319871]
[1750254597515,5.20580907,104170.0,104160.0,0.13419871]
[1750254597732,5.20580907,104170.0,104160.0,0.14379932]
[1750254598417,5.20580907,104170.0,104160.0,0.13419871]
[1750254598627,5.20580907,104170.0,104160.0,0.14379932]
[1750254599079,5.20580907,104170.0,104160.0,0.15339984]
[1750254599294,5.20580907,104170.0,104160.0,0.34541203]
[1750254599520,5.20580907,104170.0,104160.0,0.36461288]
[1750254599743,5.04261355,104170.0,104160.0,0.37421303]
[1750254599986,0.22926922,104170.0,104160.0,0.43059497]
[1750254600439,0.28126712,104170.0,104160.0,0.37397238]
[1750254600653,0.32396625,104170.0,104160.0,0.34517194]
[1750254600867,0.33356566,104170.0,104160.0,0.32873229]
[1750254601101,0.33356566,104170.0,104160.0,0.32597099]
[1750254601102,0.31596121,104170.0,104160.0,0.32597099]
[1750254601317,0.30636208,104170.0,104160.0,0.32597099]
[1750254601530,5.21910867,104170.0,104160.0,0.13395871]
[1750254601963,5.21910867,104170.0,104160.0,0.14355932]
[1750254602178,5.21910867,104170.0,104160.0,0.13395871]
[1750254602389,5.38374867,104170.0,104160.0,0.33557151]
[1750254602603,5.38374867,104170.0,104160.0,0.34517194]
[1750254602885,5.21910867,104170.0,104160.0,0.34517194]
[1750254603091,5.01751522,104170.0,104160.0,0.43057097]
[1750254603339,4.99401417,104170.0,104160.0,0.37397229]
[1750254603573,5.0036133,104170.0,104160.0,0.37397229]
[1750254603808,5.0347133,104170.0,104160.0,0.36437233]
[1750254604037,5.0347133,104170.0,104160.0,0.37397229]
[1750254604259,5.04431262,104170.0,104160.0,0.37397229]
[1750254604722,5.0347133,104170.0,104160.0,0.37397229]
[1750254604950,5.02511417,104170.0,104160.0,0.37397229]
[1750254605178,5.14901522,104170.0,104160.0,0.37397229]
[1750254605440,5.15861408,104170.0,104160.0,0.37397229]
[1750254605669,5.15861408,104170.0,104160.0,0.37397247]
[1750254605670,5.18741166,104170.0,104160.0,0.37397247]
[1750254605908,5.16821312,104170.0,104160.0,0.37397247]
[1750254606136,5.15861408,104170.0,104160.0,0.37397247]
[1750254606374,5.16821321,104170.0,104160.0,0.37397247]
[1750254606608,4.98441522,104170.0,104160.0,0.38533095]
[1750254606804,4.95161522,104170.0,104160.0,0.37397247]
[1750254607295,0.22926922,104170.0,104160.0,0.37397247]
[1750254607542,0.23886826,104170.0,104160.0,0.36437251]
[1750254607793,5.26651035,104170.0,104160.0,0.35477236]
[1750254608032,5.0745165,104170.0,104160.0,0.36437251]
[1750254608256,5.26651035,104170.0,104160.0,0.34517212]
[1750254608490,5.0745165,104170.0,104160.0,0.3643726]
[1750254608726,5.26651035,104170.0,104160.0,0.29993212]
[1750254608959,5.25691131,104170.0,104160.0,0.00213656]
[1750254610610,5.25691131,104170.0,104160.0,0.00113656]
[1750254610821,5.25791131,104170.0,104160.0,0.00113656]
[1750254611034,5.26461084,104170.0,104160.0,0.00113656]
[1750254611248,5.26461084,104170.0,104160.0,0.00013656]
[1750254611249,5.26261084,104170.0,104160.0,0.00013656]
[1750254611460,5.36176006,104170.0,104160.0,0.00113656]
[1750254611701,5.37962408,104170.0,104160.0,0.00113656]
[1750254611982,5.36992455,104170.0,104160.0,0.00013656]
[1750254612216,5.27876201,104170.0,104160.0,0.00113656]
[1750254612911,5.28076201,104170.0,104160.0,0.00113656]
[1750254613878,5.30962244,104170.0,104160.0,0.00113656]
[1750254614799,5.29177531,104170.0,104160.0,0.00113656]
[1750254615023,5.30961271,104170.0,104160.0,0.00113656]
[1750254615488,5.40576193,104170.0,104160.0,0.00113656]
[1750254615734,5.0788057,104140.0,104130.0,0.28583498]
[1750254615962,5.06920343,104140.0,104130.0,0.43691947]
[1750254616200,5.05,104140.0,104130.0,0.53662056]
[1750254616429,5.05,104150.0,104140.0,0.28185541]
[1750254616668,0.00960079,104150.0,104140.0,0.37809717]
[1750254616896,5.05,104150.0,104140.0,0.42333717]
[1750254617133,5.22407978,104160.0,104150.0,0.25383421]
[1750254617366,5.22407978,104160.0,104150.0,0.436255]
[1750254617367,5.05,104160.0,104150.0,0.436255]
[1750254617601,5.08786817,104170.0,104160.0,0.220813]
[1750254617829,5.2619473,104170.0,104160.0,0.31705476]
[1750254618061,5.0974674,104170.0,104160.0,0.31705476]
[1750254618337,5.25234817,104170.0,104160.0,0.31705476]
[1750254618559,5.26194721,104170.0,104160.0,0.31705476]
[1750254619021,5.07826922,104170.0,104160.0,0.41370138]
[1750254619250,5.25234817,104170.0,104160.0,0.38035476]
[1750254619720,4.854211,104170.0,104160.0,0.38035476]
[1750254619955,0.16644,104170.0,104160.0,0.38035476]
[1750254620190,0.202,104170.0,104160.0,0.34885476]
[1750254620420,0.002,104170.0,104160.0,0.34885476]
[1750254620647,0.002,104170.0,104160.0,0.62334631]
[1750254620885,0.002,104170.0,104160.0,0.94239339]
[1750254621111,0.10025552,104190.0,104170.0,0.24197725]
[1750254621348,5.0558038,104170.0,104160.0,0.002]
[1750254621570,5.11890529,104170.0,104160.0,0.14348176]
[1750254621794,5.1511413,104170.0,104160.0,0.14348176]
[1750254622027,5.05680435,104170.0,104160.0,0.15782994]
[1750254622256,5.23080414,104170.0,104160.0,0.15782994]
[1750254622485,5.22980414,104170.0,104160.0,0.15582994]
[1750254622915,5.23480414,104170.0,104160.0,0.15682994]
[1750254624009,5.23680414,104170.0,104160.0,0.15682994]
[1750254624429,5.23680414,104170.0,104160.0,0.34884222]
[1750254624430,5.05320485,104170.0,104160.0,0.34884222]
[1750254624668,5.24640262,104170.0,104160.0,0.15682994]
[1750254624878,5.07240302,104170.0,104160.0,0.34409465]
[1750254625107,0.207,104170.0,104160.0,0.43649528]
[1750254625321,0.207,104170.0,104160.0,0.38519508]
[1750254625322,0.22619818,104170.0,104160.0,0.38519508]
[1750254625532,0.22779227,104170.0,104160.0,0.14248176]
[1750254625743,0.42779153,104170.0,104160.0,0.34409456]
[1750254625989,0.22779153,104170.0,104160.0,0.33449404]
[1750254626420,0.42779153,104170.0,104160.0,0.35369471]
[1750254626630,0.22779153,104170.0,104160.0,0.35369471]
[1750254626840,0.22779153,104170.0,104160.0,0.34409447]
[1750254627057,0.22779153,104170.0,104160.0,0.33449404]
[1750254627292,0.22779153,104170.0,104160.0,0.35369498]
[1750254627510,0.22779153,104170.0,104160.0,0.36329522]
[1750254627725,0.23739122,104170.0,104160.0,0.37289537]
[1750254627936,0.02619808,104170.0,104160.0,0.38249533]
[1750254628150,0.22619808,104170.0,104160.0,0.47864455]
[1750254628331,0.2357974,104170.0,104160.0,0.38249533]
[1750254629236,0.22619808,104170.0,104160.0,0.38249533]
[1750254629663,0.22619808,104170.0,104160.0,0.41309533]
[1750254629664,0.22619799,104170.0,104160.0,0.41309533]
[1750254630102,0.207,104170.0,104160.0,0.42763618]
[1750254630334,0.21659895,104170.0,104160.0,0.42763618]
[1750254630555,0.21659886,104170.0,104160.0,0.42763618]
[1750254630767,0.21659886,104170.0,104160.0,0.5237854]
[1750254631476,0.24539672,104170.0,104160.0,0.38249533]
[1750254631696,4.89960772,104170.0,104160.0,0.61297533]
[1750254631908,4.89000822,104170.0,104160.0,0.61297533]
[1750254632129,4.90920713,104170.0,104160.0,0.61297533]
[1750254632341,4.89960827,104170.0,104160.0,0.61297543]
[1750254632594,4.89000877,104170.0,104160.0,0.61297478]
[1750254633053,0.007,104170.0,104160.0,0.61297478]
[1750254633263,0.22619808,104170.0,104160.0,0.61297478]
[1750254633471,0.22619818,104170.0,104160.0,0.61297478]
[1750254633877,0.22619808,104170.0,104160.0,0.61297478]
[1750254634102,0.21659886,104170.0,104160.0,0.61297478]
[1750254634312,0.2261979,104170.0,104160.0,0.61297478]
[1750254634716,0.2261979,104170.0,104160.0,0.709124]
[1750254634928,0.21659886,104170.0,104160.0,0.709124]
[1750254635139,0.207,104170.0,104160.0,0.709124]
[1750254635346,0.22619808,104170.0,104160.0,0.61297478]
[1750254635525,0.26669749,104170.0,104160.0,0.61297478]
[1750254635944,0.2666974,104170.0,104160.0,0.61297478]
[1750254636179,5.14470327,104170.0,104160.0,0.37296176]
[1750254636398,5.16733996,104170.0,104160.0,0.37296176]
[1750254636815,5.16733996,104170.0,104160.0,0.57457456]
[1750254637026,5.15774055,104170.0,104160.0,0.09724176]
[1750254637244,4.8638117,104150.0,104140.0,0.46113648]
[1750254637458,0.0096007,104150.0,104140.0,0.57161824]
[1750254637706,0.21920159,104150.0,104140.0,0.57161824]
[1750254638596,0.201,104150.0,104140.0,0.52857824]
[1750254638814,0.201,104150.0,104140.0,0.57361824]
[1750254639028,0.21060079,104150.0,104140.0,0.62468175]
[1750254639250,0.001,104150.0,104140.0,0.70072175]
[1750254639463,0.001,104150.0,104140.0,0.7480626]
[1750254640131,0.001,104150.0,104140.0,0.7490626]
[1750254640758,0.001,104150.0,104140.0,0.9133026]
[1750254643169,0.001,104150.0,104140.0,0.7040226]
[1750254643376,0.001,104150.0,104140.0,0.9133026]
[1750254643802,0.001,104150.0,104140.0,0.7040226]
[1750254644310,0.001,104150.0,104140.0,0.9133026]
[1750254644567,0.001,104150.0,104140.0,1.02079323]
[1750254644784,0.001,104150.0,104140.0,0.9633026]
[1750254645443,0.001,104150.0,104140.0,1.02079871]
[1750254646371,0.001,104150.0,104140.0,0.9633026]
[1750254647093,0.001,104150.0,104140.0,1.03992358]
[1750254647345,0.001,104150.0,104140.0,1.3533026]
[1750254647346,0.00012395,104150.0,104140.0,1.3533026]
[1750254648399,0.00012395,104150.0,104140.0,1.42993905]
[1750254651495,0.00012395,104150.0,104140.0,0.98997905]
[1750254651748,0.00012395,104150.0,104140.0,1.2061182]
[1750254652003,0.00012395,104150.0,104140.0,1.42981905]
[1750254652445,0.00012395,104150.0,104140.0,1.2061182]
[1750254652675,0.00012395,104150.0,104140.0,1.1440226]
[1750254652930,0.00012395,104150.0,104140.0,1.3531826]
[1750254654050,0.00012395,104150.0,104140.0,1.42981905]
[1750254657346,0.00012395,104150.0,104140.0,1.3820296]
[1750254658635,0.00012395,104150.0,104140.0,1.45859359]
[1750254658848,0.00012395,104150.0,104140.0,1.3820296]
[1750254659285,0.00012395,104150.0,104140.0,1.45858628]
[1750254661045,0.00012395,104150.0,104140.0,1.24942628]
[1750254661259,0.00012395,104150.0,104140.0,1.45834628]
[1750254662150,0.00012395,104150.0,104140.0,1.3817896]
[1750254662809,1.881e-05,104150.0,104140.0,2.13978583]
[1750254663025,0.03325,104200.0,104190.0,0.23529028]
[1750254663290,0.00019241,104200.0,104190.0,0.81440865]
[1750254663500,0.00019241,104200.0,104190.0,0.90267165]
[1750254663936,0.00019241,104200.0,104190.0,0.86440865]
[1750254664586,0.03209241,104200.0,104190.0,0.86440865]
[1750254665017,0.00019241,104200.0,104190.0,0.86440865]
[1750254665455,0.00019241,104200.0,104190.0,0.93427165]
[1750254665932,0.00119241,104200.0,104190.0,0.93527165]
[1750254666163,0.00119241,104200.0,104190.0,0.96707165]
[1750254666385,0.00119241,104200.0,104190.0,0.93627165]
[1750254666608,0.00119241,104200.0,104190.0,0.89800865]
[1750254666824,0.00119241,104200.0,104190.0,0.65748865]
[1750254667036,0.03309241,104200.0,104190.0,0.86636865]
[1750254667725,0.00119241,104200.0,104190.0,0.86636865]
[1750254668186,0.00119241,104200.0,104190.0,0.86496865]
[1750254668855,0.00119241,104200.0,104190.0,0.86492865]
[1750254669061,0.00119241,104200.0,104190.0,0.65608865]
[1750254669265,0.00119241,104200.0,104190.0,0.86492865]
[1750254670200,0.00119241,104200.0,104190.0,0.96649165]
[1750254670433,0.00119241,104200.0,104190.0,1.1306792]
[1750254670646,0.00119241,104200.0,104190.0,1.18807371]
[1750254671597,0.00119241,104200.0,104190.0,1.1306792]
[1750254672051,0.00119241,104200.0,104190.0,1.18807371]
[1750254672950,0.00119241,104200.0,104190.0,1.18803371]
[1750254673490,0.00119241,104200.0,104190.0,1.14977071]
[1750254673755,0.00119241,104200.0,104190.0,1.18798826]
[1750254673985,0.00119241,104200.0,104190.0,1.14977071]
[1750254674230,0.00119241,104200.0,104190.0,1.53977071]
[1750254674460,5e-05,104220.0,104210.0,0.28524791]
[1750254674684,5e-05,104220.0,104210.0,0.60128591]
[1750254674685,0.00014113,104220.0,104210.0,0.60128591]
[1750254674815,0.00014113,104220.0,104210.0,0.77084859]
[1750254675059,0.03224113,104220.0,104210.0,0.77084859]
[1750254675297,0.00014113,104220.0,104210.0,0.80906724]
[1750254675948,0.00014113,104220.0,104210.0,0.83986724]
[1750254676159,0.00014113,104220.0,104210.0,0.87296724]
[1750254676381,0.00214113,104220.0,104210.0,0.87296724]
[1750254677047,0.00014113,104220.0,104210.0,0.64514724]
[1750254677269,0.03224113,104220.0,104210.0,0.64514724]
[1750254677486,0.03224113,104220.0,104210.0,0.81564859]
[1750254677691,0.03824113,104220.0,104210.0,0.81664859]
[1750254677917,0.03224113,104220.0,104210.0,0.81564859]
[1750254678345,0.00514113,104220.0,104210.0,0.81664859]
[1750254678776,0.10316563,104230.0,104220.0,0.22068588]
[1750254678978,0.10316563,104230.0,104220.0,0.35715491]
[1750254679227,0.10316563,104230.0,104220.0,0.52560439]
[1750254680091,0.10516563,104230.0,104220.0,0.52560439]
[1750254680313,0.07206563,104230.0,104220.0,0.57560439]
[1750254681354,0.07506563,104230.0,104220.0,0.57660439]
[1750254682776,0.07506563,104230.0,104220.0,0.78524439]
[1750254683893,0.03575,104230.0,104220.0,0.78524439]
[1750254685010,0.03575,104230.0,104220.0,0.57660439]
[1750254685226,0.06675,104230.0,104220.0,0.76173712]
[1750254685459,0.06675,104230.0,104220.0,0.92553712]
[1750254685692,0.06675,104230.0,104220.0,0.73143797]
[1750254685912,5.16426802,104230.0,104220.0,0.25314073]
[1750254686352,5.29020972,104230.0,104220.0,0.001]
[1750254686569,5.33621642,104230.0,104220.0,0.04584]
[1750254686793,5.36506142,104230.0,104220.0,0.04584]
[1750254687226,5.24075257,104230.0,104220.0,0.001]
[1750254687440,5.24075257,104230.0,104220.0,0.04584]
[1750254687648,5.23775257,104230.0,104220.0,0.04484]
[1750254688088,5.18067156,104230.0,104220.0,0.24733682]
[1750254688315,5.18067156,104230.0,104220.0,0.04584]
[1750254688529,5.18062213,104230.0,104220.0,0.04584]
[1750254688759,5.17862213,104230.0,104220.0,0.04584]
[1750254688981,5.21085814,104230.0,104220.0,0.001]
[1750254689279,5.22596988,104230.0,104220.0,0.04584]
[1750254689497,5.14751406,104210.0,104200.0,0.22071188]
[1750254689714,4.917211,104210.0,104200.0,0.37148114]
[1750254689932,4.917211,104210.0,104200.0,0.38107742]
[1750254689933,0.063,104210.0,104200.0,0.38107742]
[1750254690149,0.063,104210.0,104200.0,0.47722664]
[1750254690791,0.063,104210.0,104200.0,0.47822664]
[1750254691237,0.064,104210.0,104200.0,0.45092749]
[1750254691456,0.064,104210.0,104200.0,0.65940749]
[1750254693376,0.08319062,104210.0,104200.0,0.38495742]
[1750254693588,4.95659289,104210.0,104200.0,0.53912105]
[1750254693803,4.93740162,104210.0,104200.0,0.53912105]
[1750254693989,4.94699725,104210.0,104200.0,0.37536105]
[1750254695323,4.95659307,104210.0,104200.0,0.37536105]
[1750254696230,4.96618898,104210.0,104200.0,0.33064105]
[1750254696446,5.05274303,104210.0,104200.0,0.36576496]
[1750254696638,4.98882982,104210.0,104200.0,0.38495789]
[1750254696889,4.98882982,104210.0,104200.0,0.38495734]
[1750254697102,4.98882982,104210.0,104200.0,0.37536106]
[1750254697350,5.17115453,104210.0,104200.0,0.32104469]
[1750254697564,5.1615589,104210.0,104200.0,0.35616813]
[1750254697781,4.96963874,104210.0,104200.0,0.38495752]
[1750254697996,4.96963837,104210.0,104200.0,0.38495706]
[1750254698227,4.93740236,104210.0,104200.0,0.38495706]
[1750254698440,4.94699827,104210.0,104200.0,0.38495706]
[1750254698646,5.18075044,104210.0,104200.0,0.37536078]
[1750254698853,5.18075044,104210.0,104200.0,0.36576441]
[1750254699282,5.18075044,104210.0,104200.0,0.35616795]
[1750254699732,5.18075044,104210.0,104200.0,0.36576441]
[1750254699954,4.96963782,104210.0,104200.0,0.37536069]
[1750254700173,4.97923364,104210.0,104200.0,0.37536069]
[1750254700396,4.97923364,104210.0,104200.0,0.36576441]
[1750254700612,5.1711538,104210.0,104200.0,0.36576441]
[1750254701294,5.18074971,104210.0,104200.0,0.37536078]
[1750254701513,4.99842555,104210.0,104200.0,0.37536078]
[1750254701962,5.26730412,104210.0,104200.0,0.35616849]
[1750254702212,4.918211,104210.0,104200.0,0.37536133]
[1750254702439,4.918211,104210.0,104200.0,0.38990218]
[1750254702661,0.001,104210.0,104200.0,0.38990218]
[1750254703971,5.05569382,104230.0,104220.0,0.20149673]
[1750254704190,5.11339563,104230.0,104220.0,0.31692801]
[1750254704436,5.10380174,104230.0,104220.0,0.30733339]
[1750254704716,5.09420776,104230.0,104220.0,0.29773849]
[1750254705144,5.11338984,104230.0,104220.0,0.38418494]
[1750254705362,5.12138984,104230.0,104220.0,0.38518494]
[1750254705798,5.12138984,104230.0,104220.0,0.39477956]
[1750254706659,4.90685984,104230.0,104220.0,0.39477956]
[1750254706888,4.69578855,104230.0,104220.0,0.40437409]
[1750254707113,4.68619494,104230.0,104220.0,0.40437354]
[1750254707336,0.24651394,104230.0,104220.0,0.40437354]
[1750254707559,0.25610727,104230.0,104220.0,0.40437354]
[1750254707784,0.26570079,104230.0,104220.0,0.40437354]
[1750254708006,0.27529449,104230.0,104220.0,0.40437354]
[1750254708233,0.53987171,104230.0,104220.0,0.31792764]
[1750254708500,4.98960233,104230.0,104220.0,0.09724176]
[1750254708719,4.98460233,104230.0,104220.0,0.34245858]
[1750254708950,4.97600844,104230.0,104220.0,0.09924176]
[1750254709186,4.97600844,104230.0,104220.0,0.34545858]
[1750254709418,0.03951394,104230.0,104220.0,0.54668978]
[1750254709637,0.03951394,104230.0,104220.0,0.48497843]
[1750254709889,0.03951394,104230.0,104220.0,0.57231758]
[1750254710107,0.03851394,104230.0,104220.0,0.35851758]
[1750254710330,4.76837605,104230.0,104220.0,0.30733357]
[1750254710557,4.92374535,104230.0,104220.0,0.52868828]
[1750254710772,4.93333951,104230.0,104220.0,0.36264838]
[1750254710984,4.92474608,104230.0,104220.0,0.36264838]
[1750254711435,4.92274608,104230.0,104220.0,0.371243]
[1750254711667,4.91315238,104230.0,104220.0,0.09724176]
[1750254711884,4.91315238,104230.0,104220.0,0.04572]
[1750254711885,4.90355849,104230.0,104220.0,0.04572]
[1750254712775,4.94218483,104230.0,104220.0,0.04572]
[1750254714268,4.94218483,104230.0,104220.0,0.24721682]
[1750254714484,4.94218483,104230.0,104220.0,0.25681181]
[1750254714952,4.93259067,104230.0,104220.0,0.04572]
[1750254715167,4.93259067,104230.0,104220.0,0.24721682]
[1750254715393,4.93259067,104230.0,104220.0,0.001]
[1750254715608,4.93259067,104230.0,104220.0,0.04572]
[1750254716061,0.0095949,104220.0,104210.0,0.01]
[1750254716292,0.0095949,104220.0,104180.0,0.19195861]
[1750254716293,4.64927802,104190.0,104180.0,0.21399731]
[1750254716514,4.64927802,104190.0,104180.0,0.09059176]
[1750254716515,0.42074971,104190.0,104180.0,0.09059176]
[1750254716730,4.91683342,104190.0,104180.0,0.09059176]
[1750254717615,4.94504815,104190.0,104180.0,0.09059176]
[1750254718048,4.94704815,104190.0,104180.0,0.09159176]
[1750254718712,4.91494815,104190.0,104180.0,0.34039124]
[1750254718929,4.89164525,104190.0,104180.0,0.3123632]
[1750254719150,4.88204796,104190.0,104180.0,0.3123632]
[1750254719369,4.88204796,104190.0,104180.0,0.33156009]
[1750254719585,4.86343098,104190.0,104180.0,0.33155944]
[1750254719799,4.86343098,104190.0,104180.0,0.28356718]
[1750254720068,4.85383341,104190.0,104180.0,0.29316585]
[1750254720289,4.85383341,104190.0,104180.0,0.09159176]
[1750254720514,5.01408263,104190.0,104180.0,0.09159176]
[1750254720972,4.90833575,104190.0,104180.0,0.29316595]
[1750254721193,4.898738,104190.0,104180.0,0.09159176]
[1750254721835,4.9275782,104190.0,104180.0,0.09159176]
[1750254722947,4.9564312,104190.0,104180.0,0.09159176]
[1750254723169,4.9275782,104190.0,104180.0,0.09159176]
[1750254724280,5.02372742,104190.0,104180.0,0.001]